[Event "Silver Lake Festival 2022"]
[Site "Veliko Gradiste"]
[Date "2022.06.20"]
[Round "2.8"]
[White "Tyurin, Artem"]
[Black "Krstulovic, Alex"]
[Result "1-0"]
[ECO "A28"]
[WhiteElo "2174"]
[BlackElo "2413"]
[Annotator "TA"]
[PlyCount "207"]
[EventDate "2022.06.16"]
[EventType "swiss"]
[EventCountry "SRB"]
[SourceTitle "playchess.com"]
[Source "ChessBase"]
[SourceQuality "1"]
[TimeControl "5400+30"]

{[%evp 10,206,10,0,0,0,0,0,0,0,0,0,17,15,24,14,53,28,46,40,74,59,73,66,80,70,154,81,75,55,63,56,124,108,115,109,122,125,151,148,210,197,289,297,298,308,300,312,312,305,439,445,421,430,436,403,384,372,356,305,318,151,145,134,145,41,130,49,49,51,47,67,79,23,37,41,41,41,41,8,25,10,12,14,25,14,57,50,50,8,12,12,13,14,612,581,713,413,6989,6940,9877,6061,29973,29965,29961,29958,29967,29970,29970,29968,29977,29977,29978,29978,29978,29978,29978,29979,29979,29979,29980,29979,29981,4133,29982,29978,29983,29984,29984,29985,29985,29980,29979,29981,29981,29982,29982,29981,29981,4137,29980,29981,29981,29979,29982,29979,29979,29980,29980,29980,29980,29980,29980,29981,29982,29983,29983,29984,29984,29985,29987,29987,29988,29989,29990,29991,29991,29992,29992,29990,29991,29992,29990,29989,29989,29990,29990,29991,29991,29990,29992,29993,29993,29994,29994,29995,29995,29994,29994,29994,29995,29996,29996,29997,29997,29998,29998,29999,29999]} 1. c4 {[%emt 0:00:03]} Nf6 {[%emt 0:00:26]} 2. Nc3 {[%emt 0:00:11]} e5 {[%emt 0:00:45]} 3. Nf3 {[%emt 0:00:14]} Nc6 {[%emt 0:00:08]} 4. e3 {[%emt 0:00:31]} Bb4 {[%emt 0:01:39]} 5. Qc2 {[%emt 0:00:53]} Bxc3 {[%emt 0:01:04]} 6. bxc3 {[%emt 0:02:27]} e4 {[%emt 0:08:56] A28: English Opening: Four Knights Variation.} 7. Ng5 {[%emt 0:11:32]} Qe7 {[%emt 0:13:44]} 8. f3 {[%emt 0:01:53]} exf3 {[%emt 0:00:26] The position is equal.} 9. Nxf3 {[%emt 0:01:20]} O-O {[%emt 0:14:19]} 10. Be2 {[%emt 0:00:26]} d6 {[%emt 0:00:12]} 11. O-O {[%emt 0:00:49]} Bg4 {[%emt 0:01:55]} 12. d3 {[%emt 0:18:05][%cal Bd2d3,Bd3d4][%mdl 32]} d5 {[%emt 0:12:48]} 13. cxd5 {[%emt 0:13:11]} Nxd5 {[%emt 0:00:53]} 14. Qd2 {[%emt 0:00:09] [#]} Qc5 $146 {[%emt 0:29:09]} ({Predecessor:} 14... f5 15. c4 Nf6 16. h3 Bh5 17. Rb1 b6 18. Nh4 g6 19. Bb2 Bxe2 20. Qxe2 Nh5 21. Nxf5 Rxf5 22. Rxf5 {1-0 (32) Nikolaidis,I (2493)-Brkic,A (2568) Leros 2010}) 15. c4 {[%emt 0:09:24] Threatens to win with d4.} Nf4 {[%emt 0:00:04]} 16. Bd1 $1 {[%emt 0:09:07] Black must now prevent d4.} Ng6 $1 {[%emt 0:05:12]} 17. d4 {[%emt 0:03:54]} Qb4 {[%emt 0:04:04] [#]} (17... Qxc4 $14 18. Rb1 b6) 18. Qxb4 {[%emt 0:05:23]} (18. Qd3 $142 $1) 18... Nxb4 $16 {[%emt 0:00:01]} 19. Rb1 {[%emt 0:00:24]} (19. Bd2 $5 {[%cal Rd2b4]} c5 20. Bxb4 cxb4 21. c5 $16) 19... c5 {[%emt 0:03:15]} 20. dxc5 {[%emt 0:01:29]} Nd3 {[%emt 0:00:27]} (20... a5 $1 $14) 21. Ba3 $36 {[%emt 0:00:31][%mdl 2048] White is really pushing.} ({Don't go for} 21. Ne1 $2 Bxd1 22. Nxd3 Bc2 $19) 21... Rfc8 {[%emt 0:00:32]} 22. Bc2 {[%emt 0:10:24]} Nxc5 {[%emt 0:00:56]} 23. Ng5 {[%emt 0:00:08][%cal Bf3g5,Bg5e4,Be4d6][%mdl 32]} f6 {[%emt 0:00:22]} 24. Ne4 {[%emt 0:00:06] White is more active.} Nd7 {[%emt 0:00:41]} (24... Nxe4 $16 25. Bxe4 Re8 26. Bxb7 Rad8) 25. Rxb7 $18 {[%emt 0:00:59] aiming for Nd6.} Rab8 {[%emt 0:00:25]} (25... Rcb8 $142) 26. Rfb1 {[%emt 0:00:30]} (26. Rxa7 Ra8 27. Rxa8 Rxa8 $16) 26... Nge5 {[%emt 0:00:34]} 27. Nd6 {[%emt 0:00:43]} ({Weaker is} 27. Rxa7 Rxb1+ 28. Bxb1 Nxc4 $14) 27... Rxb7 {[%emt 0:00:28]} 28. Rxb7 {[%emt 0:00:07]} Rb8 {[%emt 0:00:32]} 29. Rxa7 {[%emt 0:00:30] Strongly threatening Be4.} Nc6 {[%emt 0:00:32]} (29... Be6 {is a better defense.} 30. c5 Bd5) 30. Rc7 {[%emt 0:00:13]} Nde5 {[%emt 0:00:10]} 31. Be4 {[%emt 0:00:24]} Nd8 {[%emt 0:00:48]} 32. Re7 {[%emt 0:01:54][%cal Re7e8]} Bd7 {[%emt 0:00:30] Against Re8+} 33. Bd5+ {[%emt 0:02:14]} Kh8 {[%emt 0:00:29]} 34. c5 {[%emt 0:00:27]} h5 {[%emt 0:00:27]} 35. Nc4 {[%emt 0:02:21]} (35. h3 $18) 35... Bc6 $16 {[%emt 0:00:31]} 36. Nxe5 {[%emt 0:01:50]} Bxd5 {[%emt 0:00:06] [#]} 37. Ng6+ {[%emt 0:02:02]} (37. Rd7 $1 $16 {Hoping for Ng6+.} Nc6 38. Nxc6 (38. Rxd5 Nxe5 39. Rd2 Kh7 $16) 38... Bxc6 39. Rd6) 37... Kg8 {[%emt 0:00:04]} (37... Kh7 $1 $14 38. Nf4 Bxa2) 38. Nf4 {[%emt 0:00:23]} (38. Rd7 $16 Be4 39. Ne7+ Kh7 40. Rd4) 38... Bxa2 $14 {[%emt 0:01:16]} 39. Nxh5 {[%emt 0:01:31]} Bf7 {[%emt 0:00:01]} 40. Nf4 {[%emt 0:00:17]} Rb3 {[%emt 0:00:43]} 41. Ra7 {[%emt 0:00:52]} (41. Rd7 $16 Nc6 42. Rd3) 41... Rxe3 {[%emt 0:00:05]} 42. Ra8 {[%emt 0:00:40]} Re8 {[%emt 0:00:11]} 43. h4 {[%emt 0:00:27]} Nc6 {[%emt 0:00:21]} 44. Ra6 {[%emt 0:00:35]} Rc8 {[%emt 0:01:23]} 45. h5 {[%emt 0:00:15]} Bc4 {[%emt 0:00:47]} 46. Rb6 {[%emt 0:00:21]} Ne5 {[%emt 0:00:19]} 47. h6 {[%emt 0:00:32]} Rc6 {[%emt 0:00:47]} 48. hxg7 {[%emt 0:01:10]} Kxg7 {[%emt 0:00:13]} 49. Bb2 {[%emt 0:00:26]} Rxc5 {[%emt 0:00:35]} 50. Nh5+ {[%emt 0:00:03]} Kg6 {[%emt 0:00:31]} 51. Nxf6 {[%emt 0:00:10] Nd7+ is the strong threat.} Rc6 $2 {[%emt 0:00:19][%mdl 8192] Loses the game.} (51... Kf5 $11) 52. Nd7 $1 $18 {[%emt 0:00:45]} Rxb6 {[%emt 0:00:21]} 53. Nxb6 {[%emt 0:00:06]} Nd3 {[%emt 0:00:58]} (53... Be6 $142 54. Bxe5 Kf5) 54. Nxc4 {[%emt 0:00:04][%mdl 4096] Endgame Ne5+ would kill now.} Nf4 {[%emt 0:00:03]} 55. Ne5+ {[%emt 0:00:12]} Kh5 {[%emt 0:00:40]} 56. g4+ {[%emt 0:01:27]} Kh4 {[%emt 0:00:05]} 57. Ba3 {[%emt 0:00:41]} Ng6 {[%emt 0:00:51]} 58. Nxg6+ {[%emt 0:00:30]} Kxg4 {[%emt 0:00:04]} 59. Kf2 {[%emt 0:00:13]} Kh3 {[%emt 0:00:46]} 60. Kf3 {[%emt 0:00:09]} Kh2 {[%emt 0:00:04]} 61. Bc5 {[%emt 0:00:05]} Kh1 {[%emt 0:00:16]} 62. Bd6 {[%emt 0:00:25]} Kg1 {[%emt 0:00:04]} 63. Nf4 {[%emt 0:00:25]} Kh2 {[%emt 0:00:06]} 64. Be5 {[%emt 0:00:12]} Kh1 {[%emt 0:00:06]} 65. Nd3 {[%emt 0:00:29]} Kg1 {[%emt 0:00:08]} 66. Nf2 {[%emt 0:00:01]} Kf1 {[%emt 0:00:06]} 67. Bh2 {[%emt 0:01:09]} Ke1 {[%emt 0:00:04]} 68. Ne4 {[%emt 0:00:13]} Kd1 {[%emt 0:00:42]} 69. Ke3 {[%emt 0:00:13]} Kc2 {[%emt 0:00:06]} 70. Bd6 {[%emt 0:00:46]} Kb3 {[%emt 0:00:08]} 71. Kd4 {[%emt 0:01:45]} Ka4 {[%emt 0:00:14]} 72. Kc5 {[%emt 0:00:12]} Ka5 {[%emt 0:00:04]} 73. Bb8 {[%emt 0:00:53]} Ka6 {[%emt 0:01:04]} 74. Nd6 {[%emt 0:00:05]} Ka5 {[%emt 0:00:03]} 75. Nb5 {[%emt 0:00:36] White mates.} Ka6 {[%emt 0:00:14]} 76. Kc6 {[%emt 0:00:28]} Ka5 {[%emt 0:00:04]} 77. Ba7 {[%emt 0:00:55]} Kb4 {[%emt 0:00:25]} 78. Nd6 {[%emt 0:01:08]} Kc3 {[%emt 0:00:21]} 79. Kc5 {[%emt 0:00:15]} Kd3 {[%emt 0:00:08]} 80. Kd5 {[%emt 0:00:07]} Ke2 {[%emt 0:00:07]} 81. Ke4 {[%emt 0:00:04]} Kf1 {[%emt 0:00:09]} 82. Kf3 {[%emt 0:00:02]} Ke1 {[%emt 0:00:06]} 83. Ne4 {[%emt 0:00:50]} Kd1 {[%emt 0:00:11]} 84. Ke3 {[%emt 0:00:03]} Ke1 {[%emt 0:00:05]} 85. Nd2 {[%emt 0:00:04]} Kd1 {[%emt 0:00:04]} 86. Kd3 {[%emt 0:00:58]} Kc1 {[%emt 0:00:04]} 87. Nc4 {[%emt 0:00:10]} Kd1 {[%emt 0:00:12]} 88. Bf2 {[%emt 0:00:08]} Kc1 {[%emt 0:00:03]} 89. Nd2 {[%emt 0:01:18]} Kb2 {[%emt 0:00:48]} 90. Bc5 {[%emt 0:00:18]} Kc1 {[%emt 0:00:05]} 91. Nf3 {[%emt 0:00:48]} Kd1 {[%emt 0:00:06]} 92. Bb4 {[%emt 0:00:07]} Kc1 {[%emt 0:00:03]} 93. Nd4 {[%emt 0:00:03]} Kd1 {[%emt 0:00:28]} 94. Nc2 {[%emt 0:01:12]} Kc1 {[%emt 0:00:01]} 95. Ne3 {[%emt 0:00:12]} Kb2 {[%emt 0:00:03]} 96. Kc4 {[%emt 0:00:04]} Ka2 {[%emt 0:00:32]} 97. Kc3 {[%emt 0:00:14]} Kb1 {[%emt 0:00:04]} 98. Nc4 {[%emt 0:00:47]} Kc1 {[%emt 0:00:09]} 99. Nb2 {[%emt 0:00:06]} Kb1 {[%emt 0:00:03]} 100. Nd3 {[%emt 0:00:03]} Ka2 {[%emt 0:00:28]} 101. Kc2 {[%emt 0:00:04]} Ka1 {[%emt 0:00:03]} 102. Bc5 {[%emt 0:00:05]} Ka2 {[%emt 0:00:03]} 103. Nc1+ {[%emt 0:00:02]} Ka1 {[%emt 0:00:06]} 104. Bd4# {[%emt 0:00:02] Weighted Error Value: White=0.16 (very precise) /Black=0.41} 1-0

[Event "Silver Lake Festival 2022"]
[Site "Veliko Gradiste"]
[Date "2022.06.20"]
[Round "2.9"]
[White "Doraszelski, Alexander"]
[Black "Martic, Ivan"]
[Result "1/2-1/2"]
[ECO "B23"]
[WhiteElo "1887"]
[BlackElo "2314"]
[Annotator "TA"]
[PlyCount "49"]
[EventDate "2022.06.16"]
[EventType "swiss"]
[EventCountry "SRB"]
[SourceTitle "playchess.com"]
[Source "ChessBase"]
[SourceQuality "1"]
[TimeControl "5400+30"]

{[%evp 9,49,0,0,0,0,-18,2,-3,0,-25,47,33,42,45,78,91,89,82,78,35,35,23,29,18,44,42,246,202,208,0,237,0,203,0,242,92,92,95,72,-129,975,-162]} 1. e4 {[%emt 0:00:03]} c5 {[%emt 0:00:05]} 2. Nc3 {[%emt 0:00:10]} a6 {[%emt 0:01:26]} 3. d4 {[%emt 0:00:52]} cxd4 {[%emt 0:00:19]} 4. Qxd4 {[%emt 0:00:02]} Nc6 {[%emt 0:01:15]} 5. Qe3 {[%emt 0:00:59]} e6 {[%emt 0:03:10]} 6. Bd2 {[%emt 0:01:06] B23: Closed Sicilian: Lines without g3.} Nf6 {[%emt 0:02:35]} 7. O-O-O {[%emt 0:02:02]} d6 {[%emt 0:06:47]} 8. Kb1 {[%emt 0:06:03] The position is equal.} Be7 {[%emt 0:00:25] [#]} 9. Be2 $146 {[%emt 0:06:46]} ({Predecessor:} 9. f4 Qc7 10. Nf3 b5 11. Bd3 Nb4 12. Rhe1 Nxd3 13. cxd3 Bb7 14. e5 Nd5 15. Nxd5 Bxd5 16. exd6 Qxd6 {1-0 (33) Sanchez Montesdeoca,I (1779)-Dominguez Gutierrez,J (1546) Gran Canaria 2016}) 9... h5 {[%emt 0:03:13]} ({Black should try} 9... O-O $11) 10. f4 $14 {[%emt 0:04:13]} Qc7 {[%emt 0:03:01]} 11. Qg3 {[%emt 0:14:07]} g6 {[%emt 0:00:44]} 12. Nf3 {[%emt 0:03:48]} Bd7 {[%emt 0:06:27]} 13. e5 {[%emt 0:06:28]} h4 {[%emt 0:27:57]} 14. Nxh4 {[%emt 0:13:19]} dxe5 {[%emt 0:00:19]} 15. fxe5 {[%emt 0:03:45]} Qxe5 {[%emt 0:00:40]} 16. Bf4 {[%emt 0:04:24]} Qc5 {[%emt 0:03:02]} 17. Rhf1 {[%emt 0:02:54][%cal Oh4g6] Black must now prevent Nxg6!} b5 $2 {[%emt 0:06:17]} (17... O-O-O $14) 18. Be3 {[%emt 0:02:11]} Qe5 {[%emt 0:01:27]} 19. Bf4 {[%emt 0:01:00]} Qc5 {[%emt 0:00:20]} 20. Be3 {[%emt 0:06:28]} Qe5 {[%emt 0:00:08]} 21. Bf4 {[%emt 0:00:12]} Qc5 {[%emt 0:00:07] [#]} 22. Bd6 {[%emt 0:20:38]} (22. Nxg6 $1 $18 {[%mdl 512]} Rg8 23. Be3 Rxg6 24. Bxc5 Rxg3 25. hxg3) 22... Bxd6 $16 23. Rxd6 {Nxg6 is the strong threat.} ({Wrong is} 23. Qxd6 $2 Qxd6 24. Rxd6 Rxh4 $19) 23... Qe5 {[%emt 0:32:16] [#]} 24. Rdd1 $2 {[%emt 0:01:00] White is more active.} ({And not} 24. Nxg6 fxg6 25. Qxg6+ Ke7 $17) (24. Qf2 $1 $16 {stays on course.}) 24... Qc5 $2 {[%emt 0:00:30][%mdl 8192]} 25. Bh5 $4 {[%emt 0:00:00][%mdl 8192] Weighted Error Value: White=0.71/Black=0.38} (25. Rxf6 $18 Nd4 {[#]} 26. Rxf7 $3 {[%mdl 512]}) 1/2-1/2

[Event "Silver Lake Festival 2022"]
[Site "Veliko Gradiste"]
[Date "2022.06.20"]
[Round "2.10"]
[White "Markovic, Zoran S"]
[Black "Aayush Agrawal"]
[Result "1-0"]
[ECO "B09"]
[WhiteElo "2313"]
[BlackElo "1114"]
[Annotator "TA"]
[PlyCount "45"]
[EventDate "2022.06.16"]
[EventType "swiss"]
[EventCountry "SRB"]
[SourceTitle "playchess.com"]
[Source "ChessBase"]
[SourceQuality "1"]
[TimeControl "5400+30"]

{[%evp 11,45,45,44,38,32,0,0,0,0,0,0,12,7,8,6,7,6,0,108,116,109,114,379,390,751,745,724,728,973,810,29985,1275,29991,29990,29990,29991]} 1. e4 {[%emt 0:00:04]} d6 {[%emt 0:00:07]} 2. d4 {[%emt 0:00:09][%cal Bd2d4,Bd4c5,Bc5d6,Bd6e7][%mdl 32]} Nf6 {[%emt 0:00:03]} 3. Nc3 {[%emt 0:00:21]} g6 {[%emt 0:00:10]} 4. f4 {[%emt 0:00:17]} Bg7 {[%emt 0:00:43]} 5. Nf3 {[%emt 0:00:21]} c5 {[%emt 0:02:06]} 6. dxc5 {[%emt 0:00:34]} Qa5 {[%emt 0:00:09]} 7. Qd4 {[%emt 0:00:52] B09: Pirc Defence: Austrian Attack.} (7. cxd6 Nxe4 8. dxe7 (8. Bb5+ Nd7 $15) 8... Nc6 $11) 7... O-O {[%emt 0:09:04]} 8. cxd6 {[%emt 0:03:26]} (8. Bd2 {feels hotter.} Nc6 9. Qc4 Qxc5 10. Qxc5 dxc5 11. e5) 8... Nxe4 {[%emt 0:04:30]} 9. Qxe4 {[%emt 0:00:23] The position is equal.} Bxc3+ {[%emt 0:00:20]} 10. bxc3 {[%emt 0:01:02]} Qxc3+ {[%emt 0:00:34]} 11. Kf2 {[%emt 0:01:28][%cal Od6e7]} Qxa1 {[%emt 0:02:53]} 12. dxe7 {[%emt 0:00:38]} Re8 {[%emt 0:01:11] White must now prevent ...Nc6.} 13. Bc4 {[%emt 0:01:16]} Qf6 {[%emt 0:04:14]} (13... Nc6 $2 14. Bxf7+ $1 {[%mdl 512]} Kxf7 15. Qc4+ Be6 16. Ng5+ Kg8 17. Nxe6 Rxe7 18. Nc7+ Rf7 19. Nxa8 $18) 14. Ba3 {[%emt 0:03:07] aiming for Ng5.} Nc6 {[%emt 0:06:11]} (14... Be6 $1 $11) 15. Ng5 $1 $36 {[%emt 0:08:50][%mdl 2048] White is in control.} Bf5 {[%emt 0:12:03]} 16. Qe3 {[%emt 0:06:38] [#] Chess con chili. 0x0.0022fabfd33adp-1022s more active pieces. The black rooks are badly placed.} Be6 $146 {[%emt 0:13:53][%mdl 8192] This costs Black the game.} (16... Rxe7 $16 17. Bxe7 Qxe7) ({Predecessor:} 16... Rxe7 17. Bxe7 Nxe7 18. Bxf7+ Kg7 19. Re1 Nc6 20. Bd5 h6 21. Bxc6 hxg5 22. Bxb7 Rf8 23. fxg5 Qb2 24. Bf3 Qxa2 25. Qd4+ Kg8 26. Kg1 Qa3 27. Bd5+ {1-0 (27) Nemec,V (2082)-Zecevic,D (2240) Velika Gorica 2014}) 17. Nxe6 $18 {[%emt 0:04:06]} fxe6 {[%emt 0:00:08]} (17... Nxe7 18. Nc7 Nf5 19. Nxe8 Qh4+ 20. g3 Nxe3 21. gxh4 Nxc4 22. Nf6+ Kg7) 18. Bxe6+ {[%emt 0:08:08] A strong pair of Bishops.} Kg7 {[%emt 0:00:15]} 19. Rb1 {[%emt 0:10:30] Strongly threatening Bb2.} Qh4+ {[%emt 0:07:25]} 20. Kg1 {[%emt 0:02:12] White wants to mate with Bb2+.} Nxe7 {[%emt 0:06:24]} 21. g3 {[%emt 0:21:01]} (21. Bb2+ $142 Kh6 22. g4 Nf5 23. Qf3 $1 Rxe6 24. g5+ Qxg5+ 25. fxg5+ Kxg5 26. Kf2) 21... Qh5 {[%emt 0:03:20]} 22. Qc3+ {[%emt 0:02:50]} Kh6 {[%emt 0:00:27]} 23. g4 {[%emt 0:01:01] Weighted Error Value: White=0.09 (flawless) /Black=1.17} ({Not} 23. Rxb7 Qd1+ 24. Kf2 {[#]} (24. Kg2 $2 Qe2+ 25. Kh3 Qxe6+ $19) 24... Rad8 $1 $17) 1-0

[Event "Silver Lake Festival 2022"]
[Site "Veliko Gradiste"]
[Date "2022.06.20"]
[Round "2.11"]
[White "Botea, David-Alexandru"]
[Black "Sadikhov, Ulvi"]
[Result "0-1"]
[ECO "B41"]
[WhiteElo "1888"]
[BlackElo "2491"]
[Annotator "TA"]
[PlyCount "76"]
[EventDate "2022.06.16"]
[EventType "swiss"]
[EventCountry "SRB"]
[SourceTitle "playchess.com"]
[Source "ChessBase"]
[SourceQuality "1"]
[TimeControl "5400+30"]

{[%evp 14,76,52,39,53,53,62,48,51,61,68,59,50,51,60,36,38,35,35,35,39,37,36,37,42,0,0,-78,-77,-156,-157,-185,-99,-91,-53,-54,-53,-55,-63,-106,-112,-193,-190,-224,-211,-441,-394,-389,-382,-585,-542,-479,-479,-966,-891,-1913,-1808,-29989,-29990,-29996,-29997,-29997,-29998,-29998,-29999]} 1. e4 {[%emt 1:31:00] RR} c5 {[%emt 1:31:00]} 2. Nf3 {[%emt 0:00:30]} e6 {[%emt 0:00:30]} 3. d4 {[%emt 0:00:30]} cxd4 {[%emt 0:00:30]} 4. Nxd4 {[%emt 0:00:30]} a6 {[%emt 0:00:30]} 5. c4 {[%emt 0:00:30]} Nf6 {[%emt 0:00:30]} 6. Nc3 {[%emt 0:00:30]} Qc7 {[%emt 0:00:30]} 7. a3 {[%emt 0:00:30]} b6 {[%emt 0:00:30]} 8. Be3 {[%emt 0:00:30]} Bb7 {[%emt 0:00:30] B41: Sicilian: Kan Variation: 5 c4.} 9. f3 {[%emt 0:00:30]} d6 {[%emt 0:00:30]} 10. Be2 {[%emt 0:00:30]} Nbd7 {[%emt 0:00:30] White is slightly better.} 11. O-O {[%emt 0:00:30] 11.Rc1 is more advanced technology.} Be7 {[%emt 0:00:30]} 12. Rc1 {[%emt 0:00:30]} O-O {[%emt 0:00:30]} 13. b4 {[%emt 0:00:30]} Rac8 {[%emt 0:00:30]} 14. Qd2 {[%emt 0:00:30]} Qb8 {[%emt 0:00:30]} 15. Kh1 {[%emt 0:00:30]} Rfe8 {[%emt 0:00:30]} 16. Rc2 {[%emt 0:00:30]} Bd8 {[%emt 0:00:30]} 17. Bg1 {[%emt 0:00:30]} Ne5 {[%emt 0:00:30]} 18. Na4 {[%emt 0:00:30]} h5 {[%emt 0:00:30][%cal Bh7h5,Bh5h4,Bh4h3,Bh3g2][%mdl 32] [#]} 19. Rd1 $146 {[%emt 0:00:30]} ({Predecessor:} 19. Bf2 Ng6 20. c5 b5 21. Nb6 Bxb6 22. cxb6 d5 23. Rxc8 Rxc8 24. e5 Nxe5 25. Bg3 {½-½ (47) Sasikiran,K (2642)-Fier,A (2632) Montpellier 2015 CBM 166 Extra [RR]}) 19... h4 {[%emt 0:00:30][%cal Oh4h3]} 20. Nb3 {[%emt 0:00:30]} (20. h3 $11) 20... h3 $1 $17 {[%emt 0:00:30]} 21. Bxb6 {[%emt 0:00:30]} (21. Nxb6 $142 Bxb6 22. Bxb6 Bxe4 23. fxe4 Qxb6 24. Bd3 (24. Qxd6 $2 Qf2 $19)) 21... hxg2+ {[%emt 0:00:30]} 22. Kg1 {[%emt 0:00:30] [#]} Bc6 {[%emt 0:00:30]} (22... d5 $1 $19 {[%cal Rd5e4]} 23. cxd5 Rxc2 24. Qxc2 Bxb6+ 25. Nxb6 exd5 26. Nxd5 (26. Kxg2 $2 dxe4 27. f4 Nd3 $19) 26... Bxd5 27. exd5 Ng6) 23. Bxd8 {[%emt 0:00:30]} Bxa4 {[%emt 0:00:30]} 24. Bxf6 {[%emt 0:00:30]} Bxb3 {[%emt 0:00:30] Dancing on a razor blade.} ({Don't play} 24... gxf6 25. Rb2 $11) 25. Bxe5 {[%emt 0:00:30]} dxe5 {[%emt 0:00:30][%cal Bd6e5,Be5d4][%mdl 32]} (25... Bxc2 26. Bxd6 Qa7+ 27. Qd4 Bxd1 28. Qxa7 $11) 26. c5 {[%emt 0:00:30]} Red8 {[%emt 0:00:30] Inhibits Qd3.} ({Much worse is} 26... Bxc2 $6 27. Qxc2 a5 28. b5 $11) 27. Bd3 {[%emt 0:00:30] [#]} (27. Qc3 $17 {is a better defense.} Bxc2 28. Rxd8+ Rxd8 29. Qxc2) 27... Rd4 $1 $19 {[%emt 0:00:30] Strongly threatening ...Rcd8.} ({Inferior is} 27... Bxc2 28. Qxc2 Rd4 29. Kxg2 $15) 28. Qc3 {[%emt 0:00:30]} Bxc2 {[%emt 0:00:30]} 29. Bxc2 {[%emt 0:00:30]} (29. Qxc2 {only move.} Qa7 30. Be2) 29... a5 {[%emt 0:00:30][%cal Ra5b4]} 30. Rxd4 {[%emt 0:00:30]} exd4 {[%emt 0:00:30][%mdl 4096] Endgame KQR-KQB} 31. Qc4 {[%emt 0:00:30]} (31. Qd2 {was the only chance.} e5 32. Kxg2) 31... axb4 {[%emt 0:00:30]} 32. axb4 {[%emt 0:00:30]} Qf4 {[%emt 0:00:30]} 33. Kxg2 {[%emt 0:00:30]} (33. Qxd4 $142 Qxf3 34. Qd3) 33... Qd2+ {[%emt 0:00:30]} 34. Kg3 {[%emt 0:00:30]} Ra8 {[%emt 0:00:30] ( -> ...Ra1)} 35. Kh3 {[%emt 0:00:30]} Ra1 {[%emt 0:00:30] Black mates.} 36. Qd3 {[%emt 0:00:30]} Qh6+ {[%emt 0:00:30]} 37. Kg2 {[%emt 0:00:30]} Qg5+ {[%emt 0:00:30]} 38. Kf2 {[%emt 0:00:00]} Qg1+ {Weighted Error Value: White=0.92/Black=0.07 (flawless)} 0-1

[Event "Silver Lake Festival 2022"]
[Site "Veliko Gradiste"]
[Date "2022.06.20"]
[Round "2.12"]
[White "Song, Raymond"]
[Black "Lever, Erwan"]
[Result "1-0"]
[ECO "B41"]
[WhiteElo "2485"]
[BlackElo "2209"]
[Annotator "TA"]
[PlyCount "77"]
[EventDate "2022.06.16"]
[EventType "swiss"]
[EventCountry "SRB"]
[SourceTitle "playchess.com"]
[Source "ChessBase"]
[SourceQuality "1"]
[TimeControl "5400+30"]

{[%evp 9,77,22,32,37,43,22,58,51,46,22,34,0,45,18,58,52,57,70,54,71,77,53,58,54,71,36,32,30,58,32,39,8,45,40,56,46,50,0,44,1,33,27,25,20,22,0,33,5,30,-7,65,65,463,444,396,176,171,182,536,536,534,521,518,502,898,596,4714,4714,4714,4710]} 1. e4 {[%emt 0:00:04]} c5 {[%emt 0:00:09]} 2. Nf3 {[%emt 0:00:05]} e6 {[%emt 0:00:19]} 3. d4 {[%emt 0:00:07]} cxd4 {[%emt 0:00:05]} 4. Nxd4 {[%emt 0:00:05]} a6 {[%emt 0:01:18]} 5. a3 {[%emt 0:00:06]} b5 {[%emt 0:02:05]} 6. a4 {[%emt 0:00:05] [#] B41: Sicilian: Kan Variation: 5 c4.} bxa4 $146 {[%emt 0:00:36]} ({Predecessor:} 6... b4 7. Bd3 Bb7 8. O-O Ne7 9. Qh5 Nec6 10. Nxc6 Nxc6 11. Nd2 Qa5 12. Qh3 Ne5 13. b3 {1-0 (37) Hakobyan,A (2612)-Blomqvist,E (2550) Fagernes 2022}) 7. g3 {[%emt 0:00:06]} Bc5 {[%emt 0:03:40]} 8. Bg2 {[%emt 0:01:14][%mdl 1024] White has compensation. White is slightly better.} Ne7 {[%emt 0:00:10]} 9. O-O {[%emt 0:00:23]} Nbc6 {[%emt 0:00:09]} 10. Ne2 {[%emt 0:11:20]} Ne5 {[%emt 0:04:47]} 11. Nbc3 {[%emt 0:00:55]} d6 {[%emt 0:03:31]} 12. Nxa4 {[%emt 0:00:42]} Ba7 {[%emt 0:02:27]} 13. b3 {[%emt 0:00:11]} Bb7 {[%emt 0:08:38]} 14. Ba3 {[%emt 0:01:26]} Nc8 {[%emt 0:00:23]} 15. Nf4 {[%emt 0:02:57]} O-O {[%emt 0:10:20]} 16. Qd2 {[%emt 0:00:46]} Qc7 {[%emt 0:05:28]} 17. h3 {[%emt 0:04:53]} Bc6 {[%emt 0:03:17]} 18. Nc3 {[%emt 0:04:20]} Rd8 {[%emt 0:00:57]} 19. Kh2 {[%emt 0:02:13]} (19. Rfd1 {feels hotter.} Be8 20. Nh5 Qb6 21. Bb2) 19... Ne7 {[%emt 0:02:35]} 20. Rad1 {[%emt 0:05:41][%cal Ra3d6]} Bc5 {[%emt 0:00:52]} 21. Bb2 {[%emt 0:00:44]} Rac8 {[%emt 0:09:07]} 22. Nh5 {[%emt 0:02:02] And now f4 would win.} f6 {[%emt 0:06:42]} 23. Nf4 {[%emt 0:01:39]} (23. f4 $14 N5g6 24. Ne2) 23... Qd7 {[%emt 0:03:44]} 24. Nce2 {[%emt 0:00:05]} N7g6 {[%emt 0:06:24]} 25. Nxg6 {[%emt 0:12:29]} Nxg6 {[%emt 0:00:56]} 26. Nd4 {[%emt 0:00:11]} Bb7 {[%emt 0:01:03]} 27. Qe2 {[%emt 0:00:48]} Qe7 {[%emt 0:01:28]} 28. h4 {[%emt 0:01:35]} Ne5 {[%emt 0:04:05][%cal Oh7h5]} 29. h5 {[%emt 0:11:46]} (29. f4 $5 {[%cal Rf4e5]} Nd7 30. Bh3 $14) 29... g5 {[%emt 0:05:05]} ({Black should play} 29... Re8 $11) 30. f4 $14 {[%emt 0:01:58]} Qe8 $2 {[%emt 0:04:46][%mdl 8192] This move loses the game for Black.} 31. fxe5 $18 {[%emt 0:01:42]} dxe5 {[%emt 0:00:08][%cal Rc5d4] [#]} 32. Nxe6 {[%emt 0:08:34]} Qxe6 {[%emt 0:00:49] [#]} 33. Bh3 $1 {[%emt 0:00:07]} Qf7 {[%emt 0:01:10]} (33... Qe7) 34. Bxc8 {[%emt 0:01:12] White is clearly winning.} Rxc8 {[%emt 0:00:02]} 35. Bxe5 {[%emt 0:02:23][%cal Bb2e5,Be5f6,Bf6g5][%mdl 32]} Qe6 {[%emt 0:06:09]} 36. Bxf6 {[%emt 0:00:17]} Bxe4 {[%emt 0:05:06]} (36... Qxe4 $142 37. Qxe4 Bxe4) 37. Bxg5 {[%emt 0:23:49] Strongly threatening Rf6.} Bb6 {[%emt 0:00:00]} 38. Rf6 {[%emt 0:00:00]} Rxc2 {[%emt 0:00:00]} 39. Qxc2 {[%emt 0:00:00] Weighted Error Value: White=0.29 (precise) /Black=0.62} (39. Rxe6 $2 {perishes.} Rxe2+ 40. Kh3 Bf5+ 41. g4 Bxe6 $19) 1-0